bitfinex/quotes_ETHUSD_20250804
["timestamp","ask_amount","ask_price","bid_price","bid_amount"]
[1754278563479,0.9394,3564.6,3564.2,0.14]
[1754278563692,0.9394,3564.5,3564.2,0.14]
[1754278563898,4.256,3564.4,3564.2,0.14]
[1754278564080,0.4795,3564.4,3564.2,0.14]
[1754278564286,4.256,3564.3,3564.2,0.14]
[1754278565101,4.7355,3564.3,3564.2,0.14]
[1754278565286,4.256,3564.3,3564.2,0.14]
[1754278565509,4.7355,3564.3,3563.9,0.4806]
[1754278565686,4.7355,3564.3,3564.1,0.14]
[1754278565891,4.256,3564.3,3564.1,0.14]
[1754278566886,4.256,3564.3,3564.1,3.39164891]
[1754278567086,4.256,3564.3,3564.1,1.0645]
[1754278567925,4.256,3564.3,3564.1,3.87024987]
[1754278568130,4.256,3564.3,3564.1,1.0645]
[1754278568623,0.14,3564.6,3564.2,0.9245]
[1754278568826,4.255,3564.5,3564.2,3.73015283]
[1754278568990,4.255,3564.5,3564.2,2.80565283]
[1754278569318,4.255,3564.5,3564.3,3.87009903]
[1754278569511,4.255,3564.5,3564.3,1.0645]
[1754278569714,4.255,3564.5,3564.3,3.87008823]
[1754278570198,4.255,3564.5,3564.3,3.42418823]
[1754278570401,4.255,3564.5,3564.3,0.14]
[1754278570725,0.4795,3564.4,3564.1,0.14]
[1754278571222,0.4795,3564.3,3564.1,0.14]
[1754278571425,4.255,3564.2,3564.1,0.14]
[1754278573991,0.001,3564.3,3564.1,0.52723881]
[1754278574192,0.001,3564.3,3564.2,2.80567869]
[1754278574527,4.256,3564.3,3564.2,4.42017869]
[1754278575796,0.001,3564.3,3564.2,7.42017869]
[1754278576134,4.256,3564.3,3564.2,7.42017869]
[1754278580042,4.255,3564.3,3564.2,6.49567869]
[1754278581513,4.205,3564.3,3564.2,6.49567869]
[1754278583627,4.205,3564.3,3564.2,6.94157869]
[1754278583939,4.205,3564.3,3564.2,7.42017869]
[1754278585325,4.205,3564.3,3564.2,14.46017869]
[1754278586694,0.4795,3564.6,3564.4,2.80546162]
[1754278586929,4.251,3564.5,3564.4,2.80546162]
[1754278587128,4.7305,3564.5,3564.4,2.80546162]
[1754278587316,4.7305,3564.5,3564.4,2.94552126]
[1754278588409,4.251,3564.5,3564.4,2.94552126]
[1754278592797,5.202,3564.5,3564.2,7.04]
[1754278592998,0.951,3564.4,3564.2,7.04]
[1754278593531,0.951,3564.3,3564.2,7.04]
[1754278594343,0.4847,3564.5,3564.2,7.18]
[1754278594531,4.7357,3564.4,3564.2,7.18]
[1754278594738,0.951,3564.3,3564.2,7.18]
[1754278597234,0.951,3564.3,3564.2,0.14]
[1754278598646,0.951,3564.3,3563.9,0.002]
[1754278598945,0.951,3564.2,3563.9,0.142]
[1754278599145,5.201,3564.1,3563.9,0.142]
[1754278599514,0.4847,3564.0,3563.9,0.142]
[1754278599734,4.25,3564.1,3563.9,0.142]
[1754278599918,0.4847,3564.0,3563.9,0.142]
[1754278600129,0.951,3564.0,3563.9,0.142]
[1754278602361,0.4847,3564.0,3563.9,0.142]
[1754278602659,0.951,3564.0,3563.9,0.142]
[1754278605122,0.951,3564.0,3563.9,0.002]
[1754278605736,1.4711,3564.0,3563.9,0.002]
[1754278605940,1.6111,3564.0,3563.9,0.002]
[1754278607749,31.304911,3564.0,3563.9,0.002]
[1754278609236,34.304911,3564.0,3563.9,0.002]
[1754278611145,37.11074713,3564.0,3563.9,0.002]
[1754278612970,34.304911,3564.0,3563.9,0.002]
[1754278613179,38.555911,3564.0,3563.9,0.002]
[1754278613531,4.9111,3564.0,3563.9,0.002]
[1754278613734,0.14,3564.0,3563.9,0.002]
[1754278613968,4.393,3564.0,3563.9,0.002]
[1754278614171,5.344,3564.0,3563.9,0.002]
[1754278616776,1.091,3564.0,3563.9,0.002]
[1754278616943,5.345,3564.0,3563.9,0.002]
[1754278617269,5.8796,3564.0,3563.9,0.002]
[1754278617477,12.6236,3564.0,3563.9,0.002]
[1754278617874,42.317411,3564.0,3563.9,0.002]
[1754278618640,12.6236,3564.0,3563.9,0.002]
[1754278620475,8.3696,3564.0,3563.9,0.002]
[1754278620676,11.6207,3564.0,3563.9,0.002]
[1754278620867,11.136,3564.0,3563.9,0.002]
[1754278621563,11.6216,3564.0,3563.9,0.002]
[1754278621765,12.079,3564.0,3563.9,0.002]
[1754278621968,15.079,3564.0,3563.9,0.002]
[1754278622304,17.94724707,3564.0,3563.9,0.002]
[1754278622494,47.64105807,3564.0,3563.9,0.002]
[1754278622992,17.00424707,3564.0,3563.9,0.002]
[1754278623149,14.136,3564.0,3563.9,0.002]
[1754278627112,11.135,3564.0,3563.9,0.9239]
[1754278629106,11.135,3564.0,3563.9,0.4705]
[1754278630901,11.135,3564.0,3563.9,0.9239]
[1754278631104,11.134,3564.0,3563.9,0.9239]
[1754278633019,11.133,3564.0,3563.9,0.9239]
[1754278633783,6.884,3564.0,3563.9,0.9239]
[1754278633986,11.133,3564.0,3563.9,0.9239]
[1754278634519,6.744,3564.0,3563.9,0.9239]
[1754278634699,10.993,3564.0,3563.9,0.9239]
[1754278634899,6.744,3564.0,3563.9,0.9239]
[1754278635108,0.001,3564.3,3564.0,0.55]
[1754278635420,4.249,3564.2,3564.1,0.42797473]
[1754278635623,4.249,3564.2,3564.1,1.0619]
[1754278636192,0.001,3564.3,3564.1,1.0619]
[1754278636391,4.25,3564.2,3564.1,2.94575741]
[1754278636916,4.25,3564.2,3564.1,3.86765741]
[1754278637123,4.25,3564.2,3564.1,4.53521368]
[1754278637322,4.25,3564.2,3564.1,1.72945627]
[1754278638701,4.25,3564.2,3564.1,4.53521368]
[1754278639136,4.25,3564.2,3564.1,1.72945627]
[1754278640240,4.249,3564.2,3564.1,1.72945627]
[1754278640440,4.249,3564.2,3564.1,1.0619]
[1754278641440,4.249,3564.2,3564.1,0.14]
[1754278641737,4.249,3564.2,3564.1,0.9219]
[1754278642106,4.249,3564.2,3564.0,0.14]
[1754278642310,1.083,3564.1,3563.9,0.002]
[1754278642527,4.258,3564.0,3563.9,0.002]
[1754278642729,4.7436,3564.0,3563.9,0.002]
[1754278645235,4.258,3564.0,3563.9,0.002]
[1754278647914,5.201,3564.0,3563.9,0.002]
[1754278648245,5.7352,3564.0,3563.9,0.002]
[1754278649346,5.7173,3564.0,3563.9,0.002]
[1754278649526,35.411111,3564.0,3563.9,0.002]
[1754278650328,5.8553,3564.0,3563.9,0.002]
[1754278651528,0.6256,3564.0,3563.9,0.002]
[1754278651739,4.398,3564.0,3563.9,0.002]
[1754278651943,5.3132,3564.0,3563.9,0.002]
[1754278652718,54.86430109,3564.0,3563.9,0.002]
[1754278653050,60.67013722,3564.0,3563.9,0.002]
[1754278653214,63.53838429,3564.0,3563.9,0.002]
[1754278653419,70.28238429,3564.0,3563.9,0.002]
[1754278653936,67.47654816,3564.0,3563.9,0.002]
[1754278655463,47.61925807,3564.0,3563.9,0.002]
[1754278655754,17.92844707,3564.0,3563.9,0.002]
[1754278655956,13.66744707,3564.0,3563.9,0.002]
[1754278656159,7.7992,3564.0,3563.9,0.002]
[1754278656370,12.0602,3564.0,3563.9,0.002]
[1754278657161,11.6207,3564.0,3563.9,0.002]
[1754278657358,7.3597,3564.0,3563.9,0.002]
[1754278657527,11.145,3564.0,3563.9,0.002]
[1754278657927,11.146,3564.0,3563.9,0.9268]
[1754278658127,11.146,3564.0,3563.9,0.4573]
[1754278658327,11.146,3564.0,3563.9,0.002]
[1754278658927,6.884,3564.0,3563.9,0.002]
[1754278659258,11.146,3564.0,3563.9,0.9268]
[1754278661458,11.146,3564.0,3563.9,0.002]
[1754278663969,4.402,3564.0,3563.9,0.002]
[1754278666659,4.402,3564.0,3563.9,0.9268]
[1754278666851,4.402,3564.0,3563.9,0.002]
[1754278668250,4.399,3564.0,3563.9,0.002]
[1754278669669,0.14,3564.0,3563.9,0.002]
[1754278669972,4.398,3564.0,3563.9,0.002]
[1754278670172,4.8737,3564.0,3563.9,0.002]
[1754278670370,5.3132,3564.0,3563.9,0.002]
[1754278671954,4.8737,3564.0,3563.9,0.002]
[1754278672743,4.398,3564.0,3563.9,0.002]
[1754278672945,4.397,3564.0,3563.9,0.9268]
[1754278673670,4.397,3564.0,3563.9,0.4573]
[1754278674256,4.397,3564.0,3563.9,0.002]
[1754278674446,0.14,3564.0,3563.9,0.002]
[1754278674774,4.396,3564.0,3563.9,0.002]
[1754278674978,5.79847,3564.0,3563.9,0.002]
[1754278676353,35.492281,3564.0,3563.9,0.002]
[1754278677166,38.492281,3564.0,3563.9,0.002]
[1754278679271,41.29811713,3564.0,3563.9,0.002]
[1754278682501,41.84811713,3564.0,3563.9,0.002]
[1754278683067,42.12921713,3564.0,3563.9,0.002]
[1754278685302,41.84811713,3564.0,3563.9,0.002]
[1754278685503,41.84811713,3564.0,3563.5,0.002]
[1754278685504,55.35725217,3563.6,3563.5,0.002]
[1754278685709,62.48249924,3563.6,3563.5,0.002]
[1754278686010,63.52559924,3563.6,3563.5,0.002]
[1754278693011,63.52459924,3563.6,3563.5,0.002]
[1754278697002,59.26859924,3563.6,3563.5,0.002]
[1754278697200,63.52259924,3563.6,3563.5,0.002]
[1754278698187,58.82909924,3563.6,3563.5,0.002]
[1754278698508,63.52259924,3563.6,3563.5,0.002]
[1754278699013,59.26859924,3563.6,3563.5,0.002]
[1754278699316,63.52259924,3563.6,3563.5,0.002]
[1754278701828,63.08309924,3563.6,3563.5,0.002]
[1754278704315,35.70205807,3563.6,3563.5,0.002]
[1754278704520,34.085811,3563.6,3563.5,0.9523]
[1754278704723,37.085811,3563.6,3563.5,0.9523]
[1754278705036,4.393,3563.6,3563.5,0.9523]
[1754278707025,0.14,3563.6,3563.5,0.9523]
[1754278707232,4.393,3563.6,3563.5,0.9523]
[1754278708017,7.393,3563.6,3563.5,0.9523]
[1754278709314,3.14,3563.6,3563.5,0.9523]
[1754278709533,7.393,3563.6,3563.5,0.002]
[1754278709694,10.11802901,3563.6,3563.5,0.9485]
[1754278709895,10.11802901,3563.6,3563.5,0.002]
[1754278709896,39.81184001,3563.6,3563.5,0.002]
[1754278710204,40.28454001,3563.6,3563.5,0.002]
[1754278711515,39.81184001,3563.6,3563.5,0.002]
[1754278712433,35.55884001,3563.6,3563.5,0.9485]
[1754278712712,39.81184001,3563.6,3563.5,0.9485]
[1754278713317,35.55884001,3563.6,3563.5,0.9485]
[1754278713515,39.81184001,3563.6,3563.5,0.9485]
[1754278713719,35.55884001,3563.6,3563.5,0.002]
[1754278713930,39.81184001,3563.6,3563.5,0.002]
[1754278715516,40.73354001,3563.6,3563.5,0.002]
[1754278716228,40.28454001,3563.6,3563.5,0.002]
[1754278716606,40.73354001,3563.6,3563.5,0.002]
[1754278717411,43.53969109,3563.6,3563.5,0.002]
[1754278719738,40.73354001,3563.6,3563.5,0.002]
[1754278720257,40.28454001,3563.6,3563.5,0.002]
[1754278721061,39.81184001,3563.6,3563.5,0.002]
[1754278722457,35.55884001,3563.6,3563.5,0.002]
[1754278722658,37.085811,3563.6,3563.5,0.9485]
[1754278723362,37.085811,3563.6,3563.5,0.4655]
[1754278723929,37.085811,3563.6,3563.5,0.002]
[1754278724439,37.085811,3563.6,3563.5,0.9485]
[1754278725374,32.833811,3563.6,3563.5,0.9485]
[1754278725577,37.085811,3563.6,3563.5,0.9485]
[1754278725776,35.70205807,3563.6,3563.5,0.9485]
[1754278726355,39.95405807,3563.6,3563.5,0.9485]
[1754278726877,7.392,3563.6,3563.5,0.9485]
[1754278728176,7.391,3563.6,3563.5,0.9485]
[1754278728843,4.391,3563.6,3563.5,0.9485]
[1754278729244,7.391,3563.6,3563.5,0.9485]
[1754278730946,27.24829009,3563.6,3563.5,0.002]
[1754278734390,3.14,3563.6,3563.5,0.002]
[1754278734590,7.391,3563.6,3563.5,0.002]
[1754278737035,7.251,3563.6,3563.5,0.002]
[1754278739477,7.251,3563.6,3563.5,0.9294]
[1754278740122,3.0,3563.6,3563.5,0.9294]
[1754278740363,6.746,3563.7,3563.5,0.9294]
[1754278740658,4.251,3563.6,3563.5,0.9294]
[1754278740828,4.251,3563.6,3563.5,0.002]
[1754278741031,4.251,3563.6,3563.5,0.28282891]
[1754278741233,6.746,3563.7,3563.6,2.80615108]
[1754278741430,0.001,3563.9,3563.8,2.8059936]
[1754278741744,4.252,3563.9,3563.8,2.8059936]
[1754278742060,0.001,3563.9,3563.8,4.2833936]
[1754278742349,4.252,3563.9,3563.8,5.02343703]
[1754278744139,0.001,3563.9,3563.8,5.02343703]
[1754278747051,0.001,3563.9,3563.8,5.16343703]
[1754278754575,0.001,3563.9,3563.8,3.68603703]
[1754278755176,0.001,3563.9,3563.8,4.61343703]
[1754278755587,0.001,3563.9,3563.8,5.19149696]
[1754278756776,0.001,3563.9,3563.8,5.16343703]
[1754278756972,0.001,3563.9,3563.8,8.19149696]
[1754278757194,0.001,3563.9,3563.8,8.16343703]
[1754278761990,0.001,3563.9,3563.8,15.20343703]
[1754278763879,0.001,3563.9,3563.8,18.63746803]
[1754278764081,0.001,3563.9,3563.8,18.52503703]
[1754278765499,0.001,3563.9,3563.8,18.97413703]
[1754278765907,0.001,3563.9,3563.8,15.20343703]
[1754278766102,0.001,3563.9,3563.8,19.45243703]
[1754278766269,0.001,3563.9,3563.8,19.56485603]
[1754278766668,0.001,3563.9,3563.8,19.56685603]
[1754278768572,0.001,3563.9,3563.8,12.52685603]
[1754278774906,0.001,3564.3,3564.2,6.35567869]
[1754278775090,0.001,3564.3,3564.2,6.73407981]
[1754278775292,0.001,3564.3,3564.2,7.79167981]
[1754278776085,1e-08,3564.3,3564.2,27.5089699]
[1754278776301,1e-08,3564.3,3564.2,27.6489699]
[1754278776811,1e-08,3564.3,3564.2,28.1456699]
[1754278778487,1e-08,3564.3,3564.2,8.28837981]
[1754278782213,1e-08,3564.3,3564.2,28.1456699]
[1754278790805,1e-08,3564.3,3564.2,27.2280699]
[1754278791032,1e-08,3564.3,3564.2,28.1456699]
[1754278792347,1e-08,3564.3,3564.2,35.1856699]
[1754278793620,1e-08,3564.7,3564.6,6.35536385]
[1754278793843,1e-08,3564.7,3564.6,11.52044576]
[1754278794023,1e-08,3564.7,3564.6,11.66044576]
[1754278794829,1e-08,3564.7,3564.6,12.15614576]
[1754278795750,0.49570001,3564.7,3564.6,12.15614576]
[1754278797351,1e-08,3564.7,3564.6,12.15614576]
[1754278797650,0.49570001,3564.7,3564.6,12.15614576]
[1754278798748,1e-08,3564.7,3564.6,12.15614576]
[1754278799830,0.49090001,3564.7,3564.6,12.15614576]
[1754278800651,0.94360001,3564.7,3564.6,12.15614576]
[1754278804456,0.49090001,3564.7,3564.6,12.15614576]
[1754278805431,0.94360001,3564.7,3564.6,12.15614576]
[1754278806725,1e-08,3564.7,3564.6,12.15614576]
[1754278810443,0.49090001,3564.7,3564.6,12.15614576]
[1754278811043,1e-08,3564.7,3564.6,12.15614576]
[1754278814485,1e-08,3564.7,3564.6,13.10204576]
[1754278814986,1e-08,3564.7,3564.6,12.61064576]
[1754278815564,1e-08,3564.7,3564.6,12.15614576]
[1754278816072,1e-08,3564.7,3564.6,13.10204576]
[1754278816772,0.001,3565.9,3564.8,2.80520646]
[1754278816958,0.001,3565.9,3565.8,3.35441976]
[1754278817269,0.4919,3565.9,3565.8,3.49441976]
[1754278817562,0.9446,3565.9,3565.8,4.41050167]
[1754278819154,0.4919,3565.9,3565.8,4.41050167]
[1754278819548,0.9446,3565.9,3565.8,4.41050167]
[1754278820533,0.001,3565.9,3565.8,4.61747664]
[1754278820848,0.001,3565.9,3565.8,5.56337664]
[1754278821044,0.4537,3566.5,3566.4,3.35394795]
[1754278821271,0.4537,3566.5,3566.4,3.68934274]
[1754278821775,0.9446,3566.5,3566.4,3.68934274]
[1754278825296,0.4919,3566.5,3566.4,3.68934274]
[1754278825779,0.9446,3566.5,3566.4,3.68934274]
[1754278827101,0.9446,3566.5,3566.4,3.35394795]
[1754278828201,0.9446,3566.5,3566.3,2.80399686]
[1754278828429,0.9436,3566.4,3565.1,7.04]
[1754278828568,0.9436,3566.3,3565.2,5.797824]
[1754278828767,0.9436,3566.2,3565.4,2.80468236]
[1754278828971,19.85729009,3566.4,3565.4,2.80468236]
[1754278829202,0.9272,3566.1,3565.2,2.80485229]
[1754278829403,0.9272,3566.0,3565.2,2.80485229]
[1754278829607,0.9272,3565.9,3565.4,2.80472283]
[1754278830209,0.9272,3565.9,3565.3,2.8047997]
[1754278830405,0.466,3565.8,3565.3,2.8047997]
[1754278830711,0.9272,3565.8,3565.3,2.8047997]
[1754278831004,0.9272,3565.7,3565.6,2.80456778]
[1754278831187,0.9272,3565.7,3565.5,2.8046017]
[1754278831387,0.14,3566.2,3565.6,0.14]
[1754278831587,2.56502901,3566.2,3565.6,0.14]
[1754278832008,0.9272,3566.1,3565.4,2.80467885]
[1754278832210,0.9272,3566.0,3565.9,0.14]
[1754278832991,0.9272,3566.0,3565.9,2.94434112]
[1754278833222,0.4612,3566.2,3565.9,0.14]
[1754278833534,0.4612,3566.1,3565.9,0.14]
[1754278833689,0.4612,3566.1,3565.9,2.80434112]
[1754278834018,0.001,3566.5,3566.0,0.14]
[1754278834225,0.466,3566.1,3566.0,0.14]
[1754278834422,0.466,3566.1,3566.0,2.94426247]
[1754278834717,0.9272,3566.1,3566.0,2.94426247]
[1754278835687,0.4612,3566.1,3566.0,2.94426247]
[1754278837226,0.9272,3566.1,3566.0,2.94426247]
[1754278838618,0.4612,3566.1,3566.0,2.94422507]
[1754278838821,0.9272,3566.4,3566.3,2.80402658]
[1754278839317,0.9272,3566.4,3566.3,2.94402658]
[1754278840516,0.001,3566.5,3566.4,2.80394795]
[1754278840716,4.7152,3566.5,3566.4,2.80394795]
[1754278841286,5.1812,3566.5,3566.3,0.14]
[1754278841486,0.9272,3566.4,3566.3,0.14]
[1754278841691,1.44542,3566.4,3566.0,2.80423452]
[1754278841903,0.9272,3566.3,3566.2,0.14]
[1754278842274,0.9272,3566.3,3566.0,0.14]
[1754278842403,0.466,3566.2,3566.0,0.14]
[1754278842605,0.9272,3566.2,3566.0,0.14]
[1754278842842,0.583942,3566.3,3566.0,0.14]
[1754278843058,0.9272,3566.1,3565.6,2.80450884]
[1754278843219,0.583942,3566.3,3565.9,0.14]
[1754278843420,0.9272,3566.0,3565.9,0.14]
[1754278848358,0.9272,3566.0,3565.2,0.55]
[1754278848653,5.1802,3565.9,3565.8,0.14]
[1754278853264,5.1802,3565.9,3565.2,0.55]
[1754278853574,0.9272,3565.8,3565.5,0.14]
[1754278853725,0.9272,3565.8,3564.7,3.0]
[1754278853726,0.51802,3565.7,3564.4,0.4535]
[1754278853921,0.14,3565.6,3565.1,0.14]
[1754278854143,4.252,3565.5,3565.1,0.14]
[1754278854458,0.9272,3565.4,3565.1,0.14]
[1754278854858,0.49430056,3565.4,3565.0,0.14]
[1754278855039,0.9272,3565.3,3565.0,0.14]
[1754278855246,0.49430056,3565.4,3565.0,0.14]
[1754278855450,0.9272,3565.2,3565.0,0.14]
[1754278855761,4.252,3565.1,3565.0,0.14]
[1754278855926,5.1792,3565.1,3565.0,0.14]
[1754278856747,5.1792,3565.1,3564.6,2.80735149]
[1754278856954,0.9272,3565.0,3564.9,0.14]
[1754278858565,4.44512,3565.0,3564.9,0.14]
[1754278859127,4.44512,3565.0,3564.6,0.002]
[1754278859325,0.8939,3564.9,3564.6,0.002]
[1754278859528,4.254,3564.8,3564.6,0.002]
[1754278859774,5.1479,3564.8,3564.6,0.002]
[1754278860079,0.8939,3564.7,3564.6,0.002]
[1754278862739,5.1479,3564.7,3564.6,0.002]
[1754278863934,7.70021101,3564.7,3564.6,0.002]
[1754278864354,7.69921101,3564.7,3564.6,0.002]
[1754278864688,5.1469,3564.7,3564.6,0.002]
[1754278865190,5.1479,3564.7,3564.6,0.002]
[1754278865572,0.8939,3564.7,3564.6,0.002]
[1754278865766,5.1479,3564.7,3564.6,0.002]
[1754278865953,0.8939,3564.7,3564.6,0.002]
[1754278866285,5.1479,3564.7,3564.6,0.002]
[1754278866656,0.8939,3564.7,3564.6,0.002]
[1754278866855,5.1479,3564.7,3564.6,0.002]
[1754278867778,0.8939,3564.7,3564.6,0.002]
[1754278867957,5.1479,3564.7,3564.6,0.002]
[1754278868594,0.8939,3564.7,3564.6,0.002]
[1754278868797,22.85729009,3565.1,3564.6,0.002]
[1754278868954,0.14,3564.7,3564.6,0.002]
[1754278869153,0.14,3564.7,3564.6,0.9296]
[1754278869352,4.253,3564.7,3564.6,0.9296]
[1754278869990,4.253,3564.7,3564.6,0.4384]
[1754278872258,4.253,3564.7,3564.6,0.002]
[1754278873500,5.1469,3564.7,3564.6,0.002]
[1754278875492,4.7104,3564.7,3564.6,0.002]
[1754278876401,4.7104,3564.7,3564.2,3.87527551]
[1754278876402,25.41537362,3564.7,3564.2,0.002]
[1754278876577,19.85729009,3564.3,3564.2,0.002]
[1754278876778,24.11329009,3564.3,3564.2,0.002]
[1754278876984,25.00719009,3564.3,3564.2,0.002]
[1754278878282,4.256,3564.3,3564.2,0.002]
[1754278879205,0.4574,3564.6,3564.2,0.002]
[1754278879389,6.67223736,3564.5,3564.2,0.002]
[1754278880605,4.256,3564.4,3564.2,0.002]
[1754278880909,4.256,3564.4,3564.2,0.9296]
[1754278882181,0.4574,3564.6,3564.2,0.9296]
[1754278882379,4.256,3564.5,3564.2,0.9296]
[1754278882975,4.7134,3564.5,3564.2,0.9296]
[1754278884413,4.255,3564.4,3564.2,0.9296]
[1754278885303,4.255,3564.4,3564.2,0.002]
[1754278887525,4.24912272,3564.4,3564.2,0.002]
[1754278888021,4.24912272,3564.4,3564.2,0.9296]
[1754278888624,4.24912272,3564.4,3564.2,0.002]
[1754278888804,0.4908,3564.3,3564.2,0.002]
[1754278889427,0.9267,3564.3,3564.2,0.002]
[1754278891529,0.4908,3564.3,3564.2,0.002]
[1754278892427,0.9267,3564.3,3564.2,0.002]
[1754278893100,0.4908,3564.3,3564.2,0.002]
[1754278894623,0.9267,3564.3,3564.2,0.002]
[1754278894820,0.4908,3564.3,3564.2,0.002]
[1754278895223,4.7428,3564.3,3564.2,0.002]
[1754278895527,4.252,3564.3,3564.2,0.002]
[1754278895725,1.0667,3564.5,3564.2,0.002]
[1754278896033,4.251,3564.4,3564.2,0.002]
[1754278896218,5.1777,3564.4,3564.2,0.002]
[1754278896531,0.4908,3564.3,3564.2,0.002]
[1754278896698,4.7418,3564.3,3564.2,0.002]
[1754278898169,5.1777,3564.3,3564.2,0.002]
[1754278898498,5.85671727,3564.3,3564.2,0.002]
[1754278898920,5.99671727,3564.3,3564.2,0.002]
[1754278900517,8.99671727,3564.3,3564.2,0.002]
[1754278901704,5.99671727,3564.3,3564.2,0.002]
[1754278904236,1.74571727,3564.3,3564.2,0.002]
[1754278904408,1.74571727,3564.3,3564.2,0.4338]
[1754278904409,4.392,3564.3,3564.2,0.4338]
[1754278904611,0.14,3564.3,3564.2,0.8997]
[1754278904813,4.254,3564.3,3564.2,0.8997]
[1754278905519,0.001,3564.8,3564.2,0.8997]
[1754278905716,0.001,3564.8,3564.4,2.80545635]
[1754278905717,4.254,3564.7,3564.4,2.80545635]
[1754278906012,0.001,3564.8,3564.6,0.14]
[1754278906314,4.255,3564.7,3564.6,0.14]
[1754278906850,4.255,3564.7,3564.6,1.0377]
[1754278912372,0.001,3564.8,3564.7,2.80528515]
[1754278912524,4.254,3564.8,3564.7,1.59959304]
[1754278916866,4.254,3564.8,3564.7,4.40487819]
[1754278917274,4.254,3564.8,3564.7,1.59959304]
[1754278919268,0.001,3564.8,3564.7,4.40487819]
[1754278919452,0.001,3564.8,3564.7,4.98293104]
[1754278919656,0.001,3564.8,3564.7,4.95487819]
[1754278920405,6.695,3565.7,3565.0,0.55]
[1754278920607,6.695,3565.7,3565.6,2.80457706]
[1754278920805,10.947,3565.7,3565.6,4.21474185]
[1754278927295,10.944,3565.7,3565.6,4.21474185]
[1754278930122,6.695,3565.7,3565.6,4.21474185]
[1754278930446,10.944,3565.7,3565.6,4.21474185]
[1754278930736,0.001,3565.9,3565.8,2.80441976]
[1754278930949,4.25,3565.9,3565.8,3.17493539]
[1754278931254,4.25,3565.9,3565.8,4.25823539]
[1754278932048,0.001,3565.9,3565.8,4.80823539]
[1754278932227,4.25,3565.9,3565.8,4.80823539]
[1754278933549,4.25,3565.9,3565.8,4.33943539]
[1754278934354,4.25,3565.9,3565.8,4.80823539]
[1754278935658,0.001,3565.9,3565.8,4.80823539]
[1754278935946,0.001,3565.9,3565.8,7.83627958]
[1754278936145,0.001,3565.9,3565.8,7.80823539]
[1754278937040,0.001,3566.0,3565.9,6.35434112]
[1754278937236,0.001,3566.0,3565.9,11.30423416]
[1754278937449,0.001,3566.0,3565.9,12.24753416]
[1754278938181,0.001,3566.3,3566.2,6.35410521]
[1754278938359,0.001,3566.7,3566.4,6.35394795]
[1754278938561,0.001,3566.7,3566.4,10.93081274]
[1754278939068,0.001,3566.7,3566.4,12.01411274]
[1754278941127,0.4857,3566.7,3566.4,11.07081274]
[1754278941929,0.4857,3566.7,3566.4,12.01411274]
[1754278942134,0.001,3566.7,3566.4,12.01411274]
[1754278943148,0.001,3566.7,3566.4,7.76411274]
[1754278945383,0.001,3566.7,3566.4,7.83105633]
[1754278945619,0.001,3566.7,3566.4,7.97105633]
[1754278945995,0.001,3566.7,3566.4,8.08339433]
[1754278948403,1e-08,3566.5,3566.4,8.08339433]
[1754278948928,1e-08,3566.8,3566.7,6.35371211]
[1754278949133,1e-08,3566.8,3566.7,11.11222774]
[1754278949331,1e-08,3566.8,3566.7,11.99972774]
[1754278950093,1e-08,3566.8,3566.7,12.11205774]
[1754278952337,1e-08,3566.8,3566.7,11.22455774]
[1754278953128,1e-08,3566.8,3566.7,12.11205774]
[1754278953806,1e-08,3566.8,3566.7,11.22455774]
[1754278954441,1e-08,3566.8,3566.7,6.97655774]
[1754278954607,1e-08,3566.9,3566.8,3.3536335]
[1754278954809,1e-08,3566.9,3566.8,4.94302654]
[1754278959524,1e-08,3566.9,3566.8,8.05534554]
[1754278959843,0.001,3567.2,3567.0,0.55]
[1754278960007,0.001,3567.2,3567.1,7.62743168]
[1754278960324,0.001,3567.2,3567.1,11.0662625]
[1754278960723,0.001,3567.2,3567.1,11.9537625]
[1754278960921,0.001,3567.2,3567.1,12.0660755]
[1754278962548,0.001,3567.2,3567.1,11.1785755]
[1754278964226,0.9114,3567.2,3567.1,11.1785755]
[1754278964730,0.9114,3567.2,3567.1,11.0662625]
[1754278965514,0.4831,3567.2,3567.1,11.0662625]
[1754278966821,0.4831,3567.2,3567.1,6.8202625]
[1754278967153,0.9114,3567.2,3567.1,11.0662625]
[1754278970121,0.4831,3567.2,3567.1,11.0662625]
[1754278974624,0.001,3567.2,3567.1,11.0662625]
[1754278980480,0.001,3567.2,3567.1,12.0086625]
[1754278981445,1e-08,3567.2,3567.1,12.0086625]
[1754278986371,1e-08,3567.2,3567.1,11.0662625]
[1754278986586,0.46580001,3567.2,3567.1,11.0662625]
[1754278989067,1e-08,3567.2,3567.1,11.0662625]
[1754278989759,0.46580001,3567.2,3567.1,11.0662625]
[1754278997185,1e-08,3567.2,3567.1,11.0662625]
[1754279004580,1e-08,3567.2,3567.1,12.0076625]
[1754279004899,0.001,3567.5,3567.4,6.35316196]
[1754279005058,0.001,3567.5,3567.4,10.59816196]
[1754279005261,0.001,3567.5,3567.4,11.68056196]
[1754279005712,0.001,3567.8,3567.7,3.35292625]